fUST/lending_fUST_20250921
["ID","MTS","AMOUNT","RATE_DAILY","PERIOD"]
[386650956,1758450666666,-480.0,0.00020547,2]
[386650957,1758450666675,-480.0,0.00020547,2]
[386650958,1758450666685,-503.84,0.00020547,2]
[386650959,1758450666694,-480.0,0.00020547,2]
[386650960,1758450666704,-480.0,0.00020547,2]
[386650961,1758450666713,-540.03,0.00020547,2]
[386650962,1758450666723,-487.04948459,0.00020547,2]
[386650963,1758450666733,-480.0,0.00020547,2]
[386650964,1758450666742,-480.0,0.00020547,2]
[386650965,1758450666752,-480.0,0.00020547,2]
[386650966,1758450666762,-2365.7,0.00020547,2]
[386650967,1758450666771,-486.56315369,0.00020547,2]
[386650968,1758450666781,-480.0,0.00020547,2]
[386650969,1758450666791,-480.0,0.00020547,2]
[386650970,1758450666800,-480.0,0.00020547,2]
[386650971,1758450666810,-204.22262354,0.00020547,2]
[386650972,1758450666819,-480.0,0.00020547,2]
[386650973,1758450666829,-717.17,0.00020547,2]
[386650974,1758450666839,-494.08952021,0.00020547,2]
[386650975,1758450666849,-480.0,0.00020547,2]
[386650976,1758450666860,-480.0,0.00020547,2]
[386650977,1758450666869,-1136.14,0.00020547,2]
[386650978,1758450666878,-480.0,0.00020547,2]
[386650979,1758450666888,-1143.86,0.00020547,2]
[386650980,1758450666897,-480.0,0.00020547,2]
[386650981,1758450666906,-480.0,0.00020547,2]
[386650982,1758450666917,-480.0,0.00020547,2]
[386650983,1758450666926,-480.0,0.00020547,2]
[386650984,1758450666935,-480.0,0.00020547,2]
[386650985,1758450666945,-1462.33,0.00020547,2]
[386650986,1758450666954,-480.0,0.00020547,2]
[386650987,1758450666965,-480.0,0.00020547,2]
[386650988,1758450666974,-480.0,0.00020547,2]
[386650989,1758450666983,-393.12125384,0.00020547,2]
[386650990,1758450666994,-480.0,0.00020547,2]
[386650991,1758450667003,-480.0,0.00020547,2]
[386650992,1758450667012,-480.0,0.00020547,2]
[386650993,1758450667022,-480.0,0.00020547,2]
[386650994,1758450667031,-480.0,0.00020547,2]
[386650995,1758450667041,-480.0,0.00020547,2]
[386650996,1758450667051,-1886.72,0.00020547,2]
[386650997,1758450667059,-480.0,0.00020547,2]
[386650998,1758450667068,-480.0,0.00020547,2]
[386650999,1758450667077,-480.0,0.00020547,2]
[386651000,1758450667086,-480.0,0.00020547,2]
[386651001,1758450667095,-236.50003233,0.00020547,2]
[386651002,1758450667104,-480.0,0.00020547,2]
[386651003,1758450667114,-480.0,0.00020547,2]
[386651004,1758450667123,-480.0,0.00020547,2]
[386651005,1758450667133,-480.0,0.00020547,2]
[386651006,1758450667144,-480.0,0.00020547,2]
[386651007,1758450667153,-480.0,0.00020547,2]
[386651008,1758450667163,-480.0,0.00020547,2]
[386651009,1758450667172,-480.0,0.00020547,2]
[386651010,1758450667181,-480.0,0.00020547,2]
[386651011,1758450667190,-480.0,0.00020547,2]
[386651012,1758450667200,-499.54,0.00020547,2]
[386651013,1758450667209,-480.0,0.00020547,2]
[386651014,1758450667218,-480.0,0.00020547,2]
[386651015,1758450667228,-507.69755498,0.00020547,2]
[386651016,1758450667238,-1136.27,0.00020547,2]
[386651017,1758450667248,-599.27,0.00020547,2]
[386651018,1758450667257,-480.0,0.00020547,2]
[386651019,1758450667267,-2248.31,0.00020547,2]
[386651020,1758450667276,-480.0,0.00020547,2]
[386651021,1758450667286,-897.88,0.00020547,2]
[386651022,1758450667295,-480.0,0.00020547,2]
[386651023,1758450667304,-508.36660631,0.00020547,2]
[386651024,1758450667313,-480.0,0.00020547,2]
[386651025,1758450667323,-1185.39,0.00020547,2]
[386651026,1758450667332,-480.0,0.00020547,2]
[386651027,1758450667342,-480.0,0.00020547,2]
[386651028,1758450667352,-480.0,0.00020547,2]
[386651029,1758450667361,-480.0,0.00020547,2]
[386651030,1758450667371,-480.0,0.00020547,2]
[386651031,1758450667380,-515.77131419,0.00020547,2]
[386651032,1758450667389,-1126.63,0.00020547,2]
[386651033,1758450667399,-1043.68,0.00020547,2]
[386651034,1758450667408,-151.0,0.00020547,2]
[386651035,1758450667417,-151.0,0.00020547,2]
[386651036,1758450667427,-599.0,0.00020547,2]
[386651037,1758450667436,-480.0,0.00020547,2]
[386651038,1758450667446,-151.0,0.00020547,2]
[386651039,1758450667456,-480.0,0.00020547,2]
[386651040,1758450667466,-480.0,0.00020547,2]
[386651041,1758450667475,-480.0,0.00020547,2]
[386651042,1758450667485,-336.15,0.00020547,2]
[386651043,1758450667495,-480.0,0.00020547,2]
[386651044,1758450667504,-480.0,0.00020547,2]
[386651045,1758450667514,-756.19,0.00020547,2]
[386651046,1758450667523,-480.0,0.00020547,2]
[386651047,1758450667533,-480.0,0.00020547,2]
[386651048,1758450667542,-480.0,0.00020547,2]
[386651049,1758450667551,-256.380082,0.00020547,2]
[386651050,1758450667560,-256.380082,0.00020547,2]
[386651051,1758450667569,-256.380082,0.00020547,2]
[386651052,1758450667578,-480.0,0.00020547,2]
[386651053,1758450667587,-256.380082,0.00020547,2]
[386651054,1758450667596,-480.0,0.00020547,2]
[386651055,1758450667605,-480.0,0.00020547,2]
[386651056,1758450667615,-480.0,0.00020547,2]
[386651057,1758450667624,-151.0,0.00020547,2]
[386651058,1758450667633,-480.0,0.00020547,2]
[386651059,1758450667642,-480.0,0.00020547,2]
[386651060,1758450667651,-151.0,0.00020547,2]
[386651061,1758450667660,-151.0,0.00020547,2]
[386651062,1758450667669,-480.0,0.00020547,2]
[386651063,1758450667678,-151.0,0.00020547,2]
[386651064,1758450667688,-1323.22,0.00020547,2]
[386651065,1758450667697,-151.0,0.00020547,2]
[386651066,1758450667706,-480.0,0.00020547,2]
[386651067,1758450667715,-480.0,0.00020547,2]
[386651068,1758450667725,-480.0,0.00020547,2]
[386651069,1758450667734,-500.0,0.00020548,2]
[386651070,1758450667743,-500.0,0.00020548,2]
[386651071,1758450667751,-1500.0,0.00020568,2]
[386651072,1758450667760,-1500.0,0.00020568,2]
[386651073,1758450667769,-501.06831998,0.00020568,2]
[386651074,1758450667778,-1030.62166135,0.00020568,2]
[386651075,1758450667788,-1507.48407643,0.00020568,2]
[386651076,1758450667797,-1500.0,0.00020568,2]
[386651077,1758450667806,-1500.0,0.00020568,2]
[386651078,1758450667815,-1506.7026766,0.00020568,2]
[386651079,1758450667826,-500.0,0.00020568,2]
[386651080,1758450667836,-500.0,0.00020568,2]
[386651081,1758450667846,-1500.0,0.00020568,2]
[386651082,1758450667856,-1500.0,0.00020568,2]
[386651083,1758450667867,-1500.0,0.00020568,2]
[386651084,1758450667876,-1500.0,0.00020568,2]
[386651085,1758450667885,-508.0887507,0.00020568,2]
[386651086,1758450667894,-1500.0,0.00020568,2]
[386651087,1758450667903,-1500.0,0.00020568,2]
[386651088,1758450667912,-1500.0,0.00020568,2]
[386651089,1758450667920,-1004.8841743,0.00020568,2]
[386651090,1758450667930,-10171.02454984,0.00020611,2]
[386651091,1758450667939,-162.0,0.00020685,3]
[386651092,1758450667948,-1600.0,0.00020712,2]
[386651093,1758450667958,-420.0,0.0002079,2]
[386651094,1758450667968,-240.0,0.0002079,2]
[386651095,1758450667978,-240.0,0.0002079,2]
[386651096,1758450667987,-5000.0,0.00020807,2]
[386651097,1758450668079,-2000.0,0.00020816,2]
[386651098,1758450668089,-2000.0,0.00020816,2]
[386651099,1758450668099,-1872.37900284,0.00020816,2]
[386651100,1758450668108,-2000.0,0.00020816,2]
[386651101,1758450668118,-1823.43081564,0.00020816,2]
[386651102,1758450668129,-2000.0,0.00020816,2]
[386651103,1758450668139,-2000.0,0.00020816,2]
[386651104,1758450668149,-515.20291988,0.00020816,2]
[386651105,1758450668159,-2000.0,0.00020816,2]
[386651106,1758450668169,-2000.0,0.00020816,2]
[386651107,1758450668180,-160.0,0.0002082,2]
[386651108,1758450668190,-160.0,0.0002082,2]
[386651109,1758450668199,-848.42763433,0.0002082,2]
[386651110,1758450668210,-160.0,0.0002082,2]
[386651111,1758450668219,-160.0,0.0002082,2]
[386651112,1758450668229,-160.0,0.0002082,2]
[386651113,1758450668238,-160.0,0.0002082,2]
[386651114,1758450668247,-480.0,0.00020821,2]
[386651115,1758450668256,-480.0,0.00020821,2]
[386651116,1758450668265,-480.0,0.00020821,2]
[386651117,1758450668275,-456.11559665,0.00020821,2]
[386651118,1758450668284,-480.0,0.00020821,2]
[386651119,1758450668294,-480.0,0.00020821,2]
[386651120,1758450668305,-486.55372528,0.00020821,2]
[386651121,1758450668315,-480.0,0.00020821,2]
[386651122,1758450668325,-152.93600181,0.00020821,2]
[386651123,1758450668334,-480.0,0.00020821,2]
[386651124,1758450668344,-480.0,0.00020821,2]
[386651125,1758450668354,-480.0,0.00020821,2]
[386651126,1758450668364,-152.863996,0.00020821,2]
[386651127,1758450668374,-480.0,0.00020821,2]
[386651128,1758450668384,-151.0,0.00020821,2]
[386651129,1758450668393,-480.0,0.00020821,2]
[386651130,1758450668403,-480.0,0.00020821,2]
[386651131,1758450668412,-485.7886967,0.00020821,2]
[386651132,1758450668421,-480.0,0.00020821,2]
[386651133,1758450668431,-480.0,0.00020821,2]
[386651134,1758450668440,-480.0,0.00020821,2]
[386651135,1758450668451,-480.0,0.00020821,2]
[386651136,1758450668460,-480.0,0.00020821,2]
[386651137,1758450668470,-480.0,0.00020821,2]
[386651138,1758450668479,-480.0,0.00020821,2]
[386651139,1758450668489,-480.0,0.00020821,2]
[386651140,1758450668498,-480.0,0.00020821,2]
[386651141,1758450668508,-480.0,0.00020821,2]
[386651142,1758450668517,-480.0,0.00020821,2]
[386651143,1758450668527,-480.0,0.00020821,2]
[386651144,1758450668537,-525.71,0.00020821,2]
[386651145,1758450668546,-491.31434465,0.00020821,2]
[386651146,1758450668555,-480.0,0.00020821,2]
[386651147,1758450668565,-152.497499,0.00020821,2]
[386651148,1758450668574,-480.0,0.00020821,2]
[386651149,1758450668584,-480.0,0.00020821,2]
[386651150,1758450668593,-151.0,0.00020821,2]
[386651151,1758450668602,-480.0,0.00020821,2]
[386651152,1758450668612,-480.0,0.00020821,2]
[386651153,1758450668621,-480.0,0.00020821,2]
[386651154,1758450668630,-480.0,0.00020821,2]
[386651155,1758450668639,-480.0,0.00020821,2]
[386651156,1758450668649,-494.3,0.00020821,2]
[386651157,1758450668658,-480.0,0.00020821,2]
[386651158,1758450668667,-153.357488,0.00020821,2]
[386651159,1758450668676,-480.0,0.00020821,2]
[386651160,1758450668686,-480.0,0.00020821,2]
[386651161,1758450668696,-579.6436864,0.00020821,2]
[386651162,1758450668705,-480.0,0.00020821,2]
[386651163,1758450668714,-480.0,0.00020821,2]
[386651164,1758450668724,-480.0,0.00020821,2]
[386651165,1758450668733,-480.0,0.00020821,2]
[386651166,1758450668743,-480.0,0.00020821,2]
[386651167,1758450668752,-480.0,0.00020821,2]
[386651168,1758450668762,-480.0,0.00020821,2]
[386651169,1758450668772,-480.0,0.00020821,2]
[386651170,1758450668781,-480.0,0.00020821,2]
[386651171,1758450668791,-515.83271719,0.00020821,2]
[386651172,1758450668800,-480.0,0.00020821,2]
[386651173,1758450668810,-480.0,0.00020821,2]
[386651174,1758450668820,-503.38225145,0.00020821,2]
[386651175,1758450668829,-585.99,0.00020821,2]
[386651176,1758450668838,-13209.4,0.00020821,2]
[386651177,1758450668848,-480.0,0.00020821,2]
[386651178,1758450668857,-480.0,0.00020821,2]
[386651179,1758450668866,-480.0,0.00020821,2]
[386651180,1758450668876,-480.0,0.00020821,2]
[386651181,1758450668886,-501.60248268,0.00020821,2]
[386651182,1758450668896,-469.1788057,0.00020821,2]
[386651183,1758450668905,-151.0,0.00020821,2]
[386651184,1758450668914,-480.0,0.00020821,2]
[386651185,1758450668924,-480.0,0.00020821,2]
[386651186,1758450668933,-153.305078,0.00020821,2]
[386651187,1758450668942,-151.0,0.00020821,2]
[386651188,1758450668952,-480.0,0.00020821,2]
[386651189,1758450668961,-480.0,0.00020821,2]
[386651190,1758450668971,-151.0,0.00020821,2]
[386651191,1758450668980,-480.0,0.00020821,2]
[386651192,1758450668990,-538.75,0.00020821,2]
[386651193,1758450668999,-480.0,0.00020821,2]
[386651194,1758450669010,-489.54718786,0.00020821,2]
[386651195,1758450669020,-480.0,0.00020821,2]
[386651196,1758450669030,-480.0,0.00020821,2]
[386651197,1758450669040,-151.0,0.00020821,2]
[386651198,1758450669050,-154.249772,0.00020821,2]
[386651199,1758450669062,-480.0,0.00020821,2]
[386651200,1758450669071,-480.0,0.00020821,2]
[386651201,1758450669080,-3848.78,0.00020821,2]
[386651202,1758450669090,-480.0,0.00020821,2]
[386651203,1758450669099,-480.0,0.00020821,2]
[386651204,1758450669108,-480.0,0.00020821,2]
[386651205,1758450669118,-480.0,0.00020821,2]
[386651206,1758450669127,-480.0,0.00020821,2]
[386651207,1758450669136,-480.0,0.00020821,2]
[386651208,1758450669146,-480.0,0.00020821,2]
[386651209,1758450669155,-480.0,0.00020821,2]
[386651210,1758450669165,-480.0,0.00020821,2]
[386651211,1758450669174,-480.0,0.00020821,2]
[386651212,1758450669184,-480.0,0.00020821,2]
[386651213,1758450669194,-480.0,0.00020821,2]
[386651214,1758450669203,-1109.33,0.00020821,2]
[386651215,1758450669213,-715.29,0.00020821,2]
[386651216,1758450669223,-749.03,0.00020821,2]
[386651217,1758450669232,-970.5,0.00020821,2]
[386651218,1758450669241,-480.0,0.00020821,2]
[386651219,1758450669251,-494.40713877,0.00020821,2]
[386651220,1758450669260,-480.0,0.00020821,2]
[386651221,1758450669269,-480.0,0.00020821,2]
[386651222,1758450669279,-480.0,0.00020821,2]
[386651223,1758450669288,-1406.33,0.00020821,2]
[386651224,1758450669298,-2494.88,0.00020821,2]
[386651225,1758450669307,-480.0,0.00020821,2]
[386651226,1758450669317,-480.0,0.00020821,2]
[386651227,1758450669327,-480.0,0.00020821,2]
[386651228,1758450669336,-480.0,0.00020821,2]
[386651229,1758450669346,-480.0,0.00020821,2]
[386651230,1758450669354,-503.84,0.00020821,2]
[386651231,1758450669364,-480.0,0.00020821,2]
[386651232,1758450669373,-527.95415741,0.00020821,2]
[386651233,1758450669382,-540.03,0.00020821,2]
[386651234,1758450669391,-480.0,0.00020821,2]
[386651235,1758450669401,-480.0,0.00020821,2]
[386651236,1758450669410,-480.0,0.00020821,2]
[386651237,1758450669419,-2365.7,0.00020821,2]
[386651238,1758450669429,-480.0,0.00020821,2]
[386651239,1758450669439,-364.01,0.00020821,2]
[386651240,1758450669448,-480.0,0.00020821,2]
[386651241,1758450669458,-480.0,0.00020821,2]
[386651242,1758450669467,-717.17,0.00020821,2]
[386651243,1758450669476,-480.0,0.00020821,2]
[386651244,1758450669486,-196.4737762,0.00020821,2]
[386651245,1758450669495,-1136.14,0.00020821,2]
[386651246,1758450669586,-480.0,0.00020821,2]
[386651247,1758450669597,-1143.86,0.00020821,2]
[386651248,1758450669606,-480.0,0.00020821,2]
[386651249,1758450669616,-480.0,0.00020821,2]
[386651250,1758450669626,-480.0,0.00020821,2]
[386651251,1758450669636,-480.0,0.00020821,2]
[386651252,1758450669646,-480.0,0.00020821,2]
[386651253,1758450669655,-1462.33,0.00020821,2]
[386651254,1758450669665,-480.0,0.00020821,2]
[386651255,1758450669674,-480.0,0.00020821,2]
[386651256,1758450669683,-480.0,0.00020821,2]
[386651257,1758450669693,-480.0,0.00020821,2]
[386651258,1758450669702,-539.23417234,0.00020821,2]
[386651259,1758450669712,-480.0,0.00020821,2]
[386651260,1758450669721,-480.0,0.00020821,2]
[386651261,1758450669731,-480.0,0.00020821,2]
[386651262,1758450669740,-480.0,0.00020821,2]
[386651263,1758450669749,-1886.72,0.00020821,2]
[386651264,1758450669758,-480.0,0.00020821,2]
[386651265,1758450669767,-480.0,0.00020821,2]
[386651266,1758450669777,-480.0,0.00020821,2]
[386651267,1758450669787,-480.0,0.00020821,2]
[386651268,1758450669796,-433.006071,0.00020821,2]
[386651269,1758450669805,-433.006071,0.00020821,2]
[386651270,1758450669814,-480.0,0.00020821,2]
[386651271,1758450669824,-480.0,0.00020821,2]
[386651272,1758450669834,-480.0,0.00020821,2]
[386651273,1758450669843,-480.0,0.00020821,2]
[386651274,1758450669853,-433.006071,0.00020821,2]
[386651275,1758450669862,-433.006071,0.00020821,2]
[386651276,1758450669873,-492.16828743,0.00020821,2]
[386651277,1758450669882,-480.0,0.00020821,2]
[386651278,1758450669892,-480.0,0.00020821,2]
[386651279,1758450669901,-480.0,0.00020821,2]
[386651280,1758450669910,-480.0,0.00020821,2]
[386651281,1758450669920,-480.0,0.00020821,2]
[386651282,1758450669929,-499.54,0.00020821,2]
[386651283,1758450669938,-480.0,0.00020821,2]
[386651284,1758450669949,-480.0,0.00020821,2]
[386651285,1758450669958,-1136.27,0.00020821,2]
[386651286,1758450669967,-599.27,0.00020821,2]
[386651287,1758450669977,-480.0,0.00020821,2]
[386651288,1758450669987,-2248.31,0.00020821,2]
[386651289,1758450669996,-480.0,0.00020821,2]
[386651290,1758450670005,-897.88,0.00020821,2]
[386651291,1758450670015,-480.0,0.00020821,2]
[386651292,1758450670025,-480.0,0.00020821,2]
[386651293,1758450670035,-1185.39,0.00020821,2]
[386651294,1758450670045,-480.0,0.00020821,2]
[386651295,1758450670054,-480.0,0.00020821,2]
[386651296,1758450670064,-480.0,0.00020821,2]
[386651297,1758450670075,-480.0,0.00020821,2]
[386651298,1758450670084,-480.0,0.00020821,2]
[386651299,1758450670094,-1126.63,0.00020821,2]
[386651300,1758450670103,-1043.68,0.00020821,2]
[386651301,1758450670113,-599.0,0.00020821,2]
[386651302,1758450670123,-480.0,0.00020821,2]
[386651303,1758450670133,-480.0,0.00020821,2]
[386651304,1758450670142,-480.0,0.00020821,2]
[386651305,1758450670152,-480.0,0.00020821,2]
[386651306,1758450670162,-480.0,0.00020821,2]
[386651307,1758450670172,-480.0,0.00020821,2]
[386651308,1758450670181,-756.19,0.00020821,2]
[386651309,1758450670190,-480.0,0.00020821,2]
[386651310,1758450670200,-480.0,0.00020821,2]
[386651311,1758450670209,-480.0,0.00020821,2]
[386651312,1758450670219,-480.0,0.00020821,2]
[386651313,1758450670228,-480.0,0.00020821,2]
[386651314,1758450670245,-480.0,0.00020821,2]
[386651315,1758450670262,-597.0134419,0.00020821,2]
[386651316,1758450670278,-480.0,0.00020821,2]
[386651317,1758450670296,-480.0,0.00020821,2]
[386651318,1758450670319,-480.0,0.00020821,2]
[386651319,1758450670335,-1323.22,0.00020821,2]
[386651320,1758450670354,-480.0,0.00020821,2]
[386651321,1758450670373,-480.0,0.00020821,2]
[386651322,1758450670390,-480.0,0.00020821,2]
[386651323,1758450670406,-500.0,0.00020822,2]
[386651324,1758450670427,-500.0,0.00020822,2]
[386651325,1758450670447,-399.784695,0.00020822,2]
[386651326,1758450670460,-399.784695,0.00020822,2]
[386651327,1758450670477,-399.784695,0.00020822,2]
[386651328,1758450670491,-399.784695,0.00020822,2]
[386651329,1758450670507,-399.784695,0.00020822,2]
[386651330,1758450670521,-399.784695,0.00020822,2]
[386651331,1758450670535,-399.784695,0.00020822,2]
[386651332,1758450670549,-399.784695,0.00020822,2]
[386651333,1758450670563,-151.0,0.00020824,2]
[386651334,1758450670577,-223.920258,0.00020824,2]
[386651335,1758450670591,-151.0,0.00020824,2]
[386651336,1758450670605,-160.0,0.00020824,2]
[386651337,1758450670618,-233.52200025,0.00020824,2]
[386651338,1758450670633,-160.0,0.00020824,2]
[386651339,1758450670645,-160.0,0.00020824,2]
[386651340,1758450670658,-1003.44169041,0.0002084,2]
[386651341,1758450670671,-160.9257665,0.00020842,2]
[386651342,1758450670684,-1525.82421191,0.00020868,2]
[386651343,1758450670697,-1500.0,0.00020868,2]
[386651344,1758450670710,-1325.92532273,0.00020868,2]
[386651345,1758450670723,-1008.12953831,0.00020868,2]
[386651346,1758450670737,-1500.0,0.00020868,2]
[386651347,1758450670749,-1500.0,0.00020868,2]
[386651348,1758450670762,-1447.9875069,0.00020868,2]
[386651349,1758450670775,-252.41532655,0.000209,2]
[386651350,1758450670789,-3874.5319705,0.000209,2]
[386651351,1758450670803,-258.37510471,0.0002091,2]
[386651352,1758450670817,-13157.99453988,0.00020972,2]
[386651353,1758450670830,-151.0,0.00020972,2]
[386651354,1758450670845,-252.916333,0.00020972,2]
[386651355,1758450670859,-241.77302,0.00020972,2]
[386651356,1758450670873,-256.380082,0.00020972,2]
[386651357,1758450670886,-256.380082,0.00020972,2]
[386651358,1758450670901,-256.380082,0.00020972,2]
[386651359,1758450670915,-256.380075,0.00020972,2]
[386651360,1758450670929,-151.0,0.00020972,2]
[386651361,1758450670943,-151.0,0.00020972,2]
[386651362,1758450670957,-151.0,0.00020972,2]
[386651363,1758450670971,-151.0,0.00020972,2]
[386651364,1758450670986,-360.0,0.0002099,2]
[386651365,1758450671001,-151.0,0.00021,4]
[386651366,1758450671015,-250.15762685,0.00021,2]
[386651367,1758450671029,-272.83038381,0.00021,2]
[386651368,1758450671041,-27294.76350694,0.00021,3]
[386651369,1758450671055,-164.02275665,0.00021,2]
[386651370,1758450671068,-204.09519402,0.00021,2]
[386651371,1758450671082,-160.0,0.00021,3]
[386651372,1758450671096,-1000.0,0.00021063,2]
[386651373,1758450671110,-1000.0,0.00021063,2]
[386651374,1758450671126,-1000.0,0.00021063,2]
[386651375,1758450671140,-1000.0,0.00021063,2]
[386651376,1758450671155,-1087.420753,0.00021063,2]
[386651377,1758450671168,-1000.0,0.00021063,2]
[386651378,1758450671181,-1000.0,0.00021063,2]
[386651379,1758450671195,-1000.0,0.00021063,2]
[386651380,1758450671209,-151.57806973,0.00021088,2]
[386651381,1758450671223,-480.0,0.00021095,2]
[386651382,1758450671236,-480.0,0.00021095,2]
[386651383,1758450671377,-480.0,0.00021095,2]
[386651384,1758450671387,-480.0,0.00021095,2]
[386651385,1758450671398,-441.52887514,0.00021095,2]
[386651386,1758450671408,-480.0,0.00021095,2]
[386651387,1758450671418,-480.0,0.00021095,2]
[386651388,1758450671427,-480.0,0.00021095,2]
[386651389,1758450671437,-151.575761,0.00021095,2]
[386651390,1758450671447,-480.0,0.00021095,2]
[386651391,1758450671456,-358.17801661,0.00021095,2]
[386651392,1758450671465,-502.89585119,0.00021095,2]
[386651393,1758450671475,-480.0,0.00021095,2]
[386651394,1758450671484,-480.0,0.00021095,2]
[386651395,1758450671493,-480.0,0.00021095,2]
[386651396,1758450671502,-480.0,0.00021095,2]
[386651397,1758450671512,-480.0,0.00021095,2]
[386651398,1758450671521,-480.0,0.00021095,2]
[386651399,1758450671531,-152.959384,0.00021095,2]
[386651400,1758450671540,-151.0,0.00021095,2]
[386651401,1758450671550,-480.0,0.00021095,2]
[386651402,1758450671559,-480.0,0.00021095,2]
[386651403,1758450671568,-399.31347109,0.00021095,2]
[386651404,1758450671578,-480.0,0.00021095,2]
[386651405,1758450671587,-151.0,0.00021095,2]
[386651406,1758450671597,-480.0,0.00021095,2]
[386651407,1758450671607,-480.0,0.00021095,2]
[386651408,1758450671616,-525.71,0.00021095,2]
[386651409,1758450671626,-480.0,0.00021095,2]
[386651410,1758450671635,-480.0,0.00021095,2]
[386651411,1758450671646,-486.69221446,0.00021095,2]
[386651412,1758450671655,-480.0,0.00021095,2]
[386651413,1758450671664,-480.0,0.00021095,2]
[386651414,1758450671674,-480.0,0.00021095,2]
[386651415,1758450671683,-480.0,0.00021095,2]
[386651416,1758450671693,-494.3,0.00021095,2]
[386651417,1758450671702,-480.0,0.00021095,2]
[386651418,1758450671713,-480.0,0.00021095,2]
[386651419,1758450671722,-480.0,0.00021095,2]
[386651420,1758450671732,-259.22906788,0.00021095,2]
[386651421,1758450671742,-480.0,0.00021095,2]
[386651422,1758450671751,-480.0,0.00021095,2]
[386651423,1758450671761,-480.0,0.00021095,2]
[386651424,1758450671770,-480.0,0.00021095,2]
[386651425,1758450671780,-340.27229525,0.00021095,2]
[386651426,1758450671790,-480.0,0.00021095,2]
[386651427,1758450671800,-480.0,0.00021095,2]
[386651428,1758450671811,-480.0,0.00021095,2]
[386651429,1758450671821,-480.0,0.00021095,2]
[386651430,1758450671831,-480.0,0.00021095,2]
[386651431,1758450671841,-480.0,0.00021095,2]
[386651432,1758450671851,-585.99,0.00021095,2]
[386651433,1758450671860,-13209.4,0.00021095,2]
[386651434,1758450671870,-480.0,0.00021095,2]
[386651435,1758450671879,-480.0,0.00021095,2]
[386651436,1758450671889,-480.0,0.00021095,2]
[386651437,1758450671899,-480.0,0.00021095,2]
[386651438,1758450671908,-301.81,0.00021095,2]
[386651439,1758450671917,-553.3194877,0.00021095,2]
[386651440,1758450671927,-480.0,0.00021095,2]
[386651441,1758450671937,-480.0,0.00021095,2]
[386651442,1758450671946,-480.0,0.00021095,2]
[386651443,1758450671956,-538.75,0.00021095,2]
[386651444,1758450671966,-480.0,0.00021095,2]
[386651445,1758450671975,-480.0,0.00021095,2]
[386651446,1758450671984,-326.6030773,0.00021095,2]
[386651447,1758450671994,-480.0,0.00021095,2]
[386651448,1758450672003,-3848.78,0.00021095,2]
[386651449,1758450672013,-480.0,0.00021095,2]
[386651450,1758450672022,-480.0,0.00021095,2]
[386651451,1758450672032,-480.0,0.00021095,2]
[386651452,1758450672042,-480.0,0.00021095,2]
[386651453,1758450672051,-480.0,0.00021095,2]
[386651454,1758450672061,-480.0,0.00021095,2]
[386651455,1758450672070,-480.0,0.00021095,2]